bitfinex-derivatives/quotes_ETHF0:USTF0_20260209
["timestamp","ask_amount","ask_price","bid_price","bid_amount"]
[1770596356762,8.18730563,2092.3,2091.3,3.04166431]
[1770596357565,8.18730563,2092.3,2091.3,0.00393805]
[1770596357963,8.18730563,2092.3,2091.3,2.97090859]
[1770596358260,8.18730563,2092.3,2091.3,0.00393805]
[1770596359967,8.43148334,2092.1,2090.5,29.05613114]
[1770596360171,8.43148334,2092.1,2090.5,26.20471155]
[1770596360370,8.43148334,2092.1,2090.5,2.91571155]
[1770596360670,8.43148334,2092.1,2090.3,2.90737944]
[1770596360859,8.43148334,2092.0,2090.3,2.90737944]
[1770596361059,8.43148334,2092.0,2090.3,2.91117806]
[1770596362270,8.43148334,2091.9,2090.3,2.91117806]
[1770596362672,8.43148334,2091.9,2090.4,2.91126151]
[1770596363661,8.43148334,2091.9,2090.6,2.71952187]
[1770596363869,8.43148334,2091.9,2090.8,2.71952187]
[1770596364270,8.43148334,2091.9,2090.9,2.71952187]
[1770596364567,8.43148334,2091.9,2091.0,2.71144355]
[1770596364967,8.43148334,2091.9,2091.1,2.71144355]
[1770596365574,8.43148334,2092.2,2091.1,2.71144355]
[1770596365769,8.43148334,2092.2,2091.2,2.90473532]
[1770596366162,8.43148334,2092.2,2091.1,2.84394873]
[1770596366366,8.43148334,2092.2,2091.0,2.84394873]
[1770596366566,8.43148334,2092.2,2090.9,26.12094873]
[1770596367275,8.43148334,2092.2,2090.7,2.84394873]
[1770596367467,8.43148334,2092.2,2090.6,2.84394873]
[1770596367670,8.43148334,2092.1,2090.4,5.73425832]
[1770596368174,8.43148334,2092.0,2090.5,2.84394873]
[1770596369276,8.43148334,2092.0,2090.5,5.69933613]
[1770596370578,8.43148334,2091.9,2090.5,5.69933613]
[1770596371175,8.43148334,2091.9,2090.8,2.84747793]
[1770596371382,8.43148334,2091.9,2090.9,2.8395863]
[1770596371577,8.43148334,2091.9,2090.7,2.84394873]
[1770596372173,8.43148334,2091.9,2090.7,5.68216368]
[1770596372379,8.43148334,2091.9,2090.8,2.84394873]
[1770596372677,8.43148334,2091.9,2090.8,5.67433791]
[1770596373878,8.43148334,2091.9,2090.8,2.84394873]
[1770596374076,8.43148334,2091.6,2090.4,2.84394873]
[1770596374372,8.43148334,2091.6,2090.7,2.78976197]
[1770596374575,8.43148334,2091.6,2090.8,2.78976197]
[1770596374777,8.43148334,2091.6,2090.9,2.78976197]
[1770596375370,8.43148334,2091.6,2091.0,2.77761234]
[1770596377276,11.27892498,2092.3,2091.1,2.74718308]
[1770596377578,8.43565007,2092.3,2091.6,2.74718308]
[1770596377774,8.43565007,2092.3,2091.4,2.84394873]
[1770596378579,8.43565007,2092.3,2091.5,5.58356749]
[1770596379977,8.43565007,2092.3,2091.5,2.84394873]
[1770596380371,8.43565007,2092.3,2091.4,2.84394873]
[1770596380575,8.43565007,2092.3,2091.3,2.84394873]
[1770596381575,8.43565007,2092.3,2091.2,2.84394873]
[1770596381778,8.43148334,2092.1,2090.8,2.84394873]
[1770596381973,8.43148334,2092.1,2090.7,2.84780025]
[1770596382174,8.43148334,2092.1,2090.7,5.53546823]
[1770596382578,8.43148334,2092.1,2090.7,2.84780025]
[1770596383378,8.43148334,2092.0,2090.7,2.84780025]
[1770596383580,8.43148334,2092.0,2090.5,2.84780025]
[1770596384384,8.43148334,2091.8,2090.5,2.84780025]
[1770596385583,8.43148334,2091.8,2090.5,5.60155698]
[1770596385783,8.43148334,2091.8,2090.6,2.75375673]
[1770596385985,8.43148334,2091.8,2090.7,2.75375673]
[1770596386180,8.43148334,2091.8,2090.6,2.84780025]
[1770596386579,8.43148334,2091.8,2090.5,2.84780025]
[1770596386985,8.43148334,2091.8,2090.4,2.84780025]
[1770596387379,8.43148334,2091.8,2090.3,2.85159887]
[1770596387984,8.18519384,2091.4,2090.3,0.00379862]
[1770596388290,8.42442384,2091.4,2089.9,2.84780025]
[1770596388487,30.921,2091.5,2089.8,2.84780025]
[1770596388488,8.42445384,2091.2,2089.8,2.84780025]
[1770596388678,8.18519384,2091.0,2089.6,2.84780025]
[1770596388987,8.42447384,2091.0,2089.6,2.84780025]
[1770596389378,36.5458045,2091.5,2089.6,0.00587208]
[1770596389379,8.18519384,2090.8,2089.6,0.00587208]
[1770596389588,8.18895421,2090.8,2089.6,0.00587208]
[1770596389789,8.18519384,2090.6,2089.6,0.00587208]
[1770596390984,8.18895421,2090.8,2089.7,1.81707773]
[1770596391189,8.18895421,2090.8,2089.8,1.81707773]
[1770596392993,8.18895421,2090.8,2089.9,1.91640851]
[1770596393390,0.00376037,2090.8,2090.1,1.7796853]
[1770596393590,8.18895421,2090.8,2089.8,1.7796853]
[1770596398489,8.18895421,2090.8,2089.9,1.83127059]
[1770596400293,8.18895421,2090.8,2089.7,1.81869874]
[1770596400495,8.18895421,2090.8,2089.8,1.81869874]
[1770596400994,8.18895421,2090.8,2089.9,1.81869874]
[1770596401698,8.18895421,2090.8,2090.0,1.81233151]
[1770596401699,0.00376037,2090.8,2090.0,1.81233151]
[1770596402095,0.00376037,2090.8,2090.1,1.81233151]
[1770596402294,0.00376037,2090.8,2090.2,1.80594644]
[1770596402699,8.18519384,2091.6,2090.4,1.80594644]
[1770596402893,8.18519384,2091.6,2090.7,1.80594644]
[1770596403093,8.18519384,2091.6,2090.8,1.80594644]
[1770596403689,8.18923333,2091.6,2090.8,1.80594644]
[1770596404402,0.00403949,2091.6,2090.8,2.04524644]
[1770596404603,0.00403949,2091.6,2090.9,1.72114902]
[1770596405102,8.18519384,2092.0,2091.2,3.97952495]
[1770596405699,8.18519384,2092.8,2091.4,3.99150138]
[1770596406003,8.18900028,2092.8,2091.4,3.99543323]
[1770596408495,8.18900028,2092.8,2091.4,0.00393185]
[1770596409499,8.26840771,2092.7,2090.8,2.84780025]
[1770596409704,8.18519384,2092.1,2090.4,4.0892504]
[1770596410399,8.18519384,2092.0,2090.2,7.17050578]
[1770596410592,8.42436384,2092.0,2090.2,7.17621526]
[1770596410792,8.18519384,2091.8,2090.3,4.08333553]
[1770596412002,8.18519384,2091.8,2090.2,3.09287973]
[1770596412404,8.18519384,2091.8,2090.2,0.24507948]
[1770596412604,8.18519384,2091.6,2090.2,0.00570948]
[1770596412903,8.18519384,2091.4,2090.2,0.00570948]
[1770596414297,8.18519384,2091.4,2090.2,4.06477622]
[1770596414700,8.18519384,2091.4,2090.3,4.05906674]
[1770596414902,8.18519384,2091.4,2090.4,4.05906674]
[1770596415908,8.24151862,2092.1,2090.7,3.96716937]
[1770596416201,8.24151862,2092.1,2090.9,3.95895101]
[1770596417008,8.24151862,2092.1,2091.1,3.95906529]
[1770596418006,8.24151862,2092.1,2091.2,3.92238037]
[1770596418208,8.24151862,2092.1,2091.3,3.92238037]
[1770596418507,8.45734393,2092.5,2091.3,3.92238037]
[1770596420009,8.45734393,2092.5,2091.5,3.93486496]
[1770596420607,8.45734393,2092.7,2091.7,3.92921908]
[1770596420804,8.45734393,2092.7,2091.7,3.93327432]
[1770596422699,0.00380644,2092.8,2092.0,4.16620379]
[1770596423303,8.46115037,2092.8,2092.0,4.16620379]
[1770596424412,0.00380644,2092.8,2092.0,3.92704379]
[1770596424608,8.45734393,2093.2,2092.2,4.01969232]
[1770596424808,8.45734393,2093.2,2092.1,6.36149436]
[1770596424809,8.45734393,2093.2,2092.3,23.224]
[1770596425112,8.45734393,2093.2,2092.4,4.01588588]
[1770596425602,8.46183794,2093.2,2092.4,4.01588588]
[1770596426013,8.46183794,2093.2,2092.4,4.00588588]
[1770596426316,8.45734393,2093.6,2092.6,3.75090784]
[1770596427414,8.46071881,2093.6,2092.6,3.75090784]
[1770596428407,8.46071881,2093.6,2092.8,3.71555713]
[1770596429608,0.00337488,2093.6,2092.8,3.71555713]
[1770596430209,0.00337488,2093.6,2092.6,3.08689025]
[1770596430210,8.45734393,2093.8,2093.0,3.707861]
[1770596430417,8.45734393,2093.8,2092.9,6.13227705]
[1770596430711,8.45734393,2093.8,2092.6,3.70826655]
[1770596430914,8.45734393,2093.8,2092.3,3.70826655]
[1770596431107,8.45734393,2093.8,2092.3,27.01226655]
[1770596431311,8.46309285,2093.8,2092.4,3.69468708]
[1770596432512,8.46309285,2093.8,2092.6,3.928441]
[1770596432714,8.46309285,2093.8,2092.5,6.18520463]
[1770596432715,8.46309285,2093.8,2092.9,3.689351]
[1770596434215,8.46309285,2093.8,2092.8,3.86635438]
[1770596438117,8.46309285,2093.8,2092.2,3.37449576]
[1770596438416,8.45734393,2093.6,2092.2,3.86906575]
[1770596439015,8.45734393,2093.6,2092.3,3.82063024]
[1770596439330,8.45734393,2093.6,2092.4,3.70208758]
[1770596439517,8.45734393,2093.6,2092.3,0.23913]
[1770596441221,8.45734393,2093.6,2092.2,0.28756551]
[1770596441421,8.69632393,2093.6,2092.0,3.69689492]
[1770596441611,8.69632393,2093.6,2091.9,23.54817]
[1770596442221,8.69632393,2093.6,2092.0,3.6385521]
[1770596442613,8.45734393,2093.4,2092.0,3.6385521]
[1770596442810,8.45734393,2093.4,2092.0,4.16596677]
[1770596443010,8.45734393,2093.4,2092.2,3.63894141]
[1770596443220,8.45734393,2093.4,2092.2,3.87808141]
[1770596444323,8.45734393,2093.4,2092.4,3.62221407]
[1770596444712,8.45734393,2093.7,2092.8,3.86128407]
[1770596445716,8.45734393,2093.7,2092.8,27.22928407]
[1770596445921,8.45734393,2093.7,2092.8,23.60707]
[1770596446616,8.45734393,2093.7,2092.9,3.59603015]
[1770596447820,8.45734393,2093.7,2092.8,30.03732894]
[1770596448025,8.45734393,2093.7,2092.9,3.58245869]
[1770596448319,8.45734393,2093.7,2092.7,2.83889594]
[1770596448521,8.45734393,2093.7,2092.4,6.42524836]
[1770596448726,8.45734393,2093.7,2092.5,6.42524836]
[1770596448926,8.45734393,2093.7,2092.6,6.42524836]
[1770596449325,0.00574892,2093.8,2092.8,6.6665261]
[1770596449527,0.00574892,2093.8,2092.9,10.89599558]
[1770596449729,0.00574892,2093.8,2093.0,6.6665261]
[1770596449924,8.37485195,2093.8,2093.0,6.6665261]
[1770596450925,0.00574892,2093.8,2093.0,9.6438312]
[1770596451122,0.00574892,2093.8,2093.1,6.66091713]
[1770596451526,0.00574892,2093.8,2093.1,6.89994713]
[1770596454521,40.8,2094.4,2093.0,6.96772458]
[1770596454522,8.36910303,2094.4,2093.4,6.59593089]
[1770596454728,8.36910303,2094.4,2093.3,11.06441037]
[1770596454926,8.36910303,2094.4,2093.3,30.48594089]
[1770596455331,8.36910303,2094.4,2093.1,10.84753244]
[1770596455631,8.37418409,2094.4,2093.1,30.28578662]
[1770596456332,8.37418409,2094.4,2093.2,6.61806296]
[1770596460326,11.22531522,2094.4,2093.1,0.00572366]
[1770596460544,52.02023416,2094.3,2093.1,0.00572366]
[1770596460740,8.36910303,2094.2,2093.1,0.00572366]
[1770596461442,8.36910303,2094.0,2093.1,0.00572366]
[1770596461642,8.36910303,2093.9,2092.6,6.55930598]
[1770596462340,8.36910303,2093.9,2092.7,6.5520441]
[1770596462546,8.36910303,2093.9,2093.1,6.5520441]
[1770596462742,2.85621219,2094.4,2093.3,6.5520441]
[1770596462743,8.36910303,2094.3,2093.3,6.5520441]
[1770596462942,0.00508106,2094.4,2093.7,6.5520441]
[1770596463848,8.36910303,2095.1,2094.0,6.49009813]
[1770596464142,8.36910303,2095.1,2094.2,6.49009813]
[1770596464743,8.37414312,2095.1,2094.2,6.49437637]
[1770596469052,0.00504009,2095.1,2094.3,12.78115239]
[1770596469252,0.00504009,2095.1,2094.4,6.45232036]
[1770596469651,8.37414312,2095.1,2094.2,0.00427824]
[1770596469854,8.37414312,2095.1,2094.2,6.44389014]
[1770596470152,0.00504009,2095.1,2094.2,6.44389014]
[1770596470353,8.36910303,2095.3,2094.5,6.43268966]
[1770596470554,8.36910303,2095.3,2094.7,6.43268966]
[1770596470946,8.36910303,2095.3,2094.6,24.011]
[1770596471355,8.37454159,2095.3,2094.6,24.011]
[1770596472046,8.37454159,2095.3,2094.4,24.087]
[1770596473248,8.37454159,2095.3,2094.2,0.24318824]
[1770596473450,8.37454159,2095.3,2094.3,6.40095135]
[1770596475252,8.37454159,2095.3,2094.3,6.63985135]
[1770596475959,8.10828976,2095.5,2094.5,6.42227209]
[1770596476550,8.10828976,2095.5,2094.5,6.66114209]
[1770596476755,8.10828976,2095.8,2094.5,6.66114209]
[1770596477053,8.11429444,2095.8,2094.7,6.65278044]
[1770596477358,8.11429444,2095.8,2094.9,6.41394044]
[1770596477751,8.11429444,2095.8,2094.8,24.225]
[1770596478653,8.11429444,2095.8,2094.8,30.60732436]
[1770596478853,8.11429444,2095.8,2094.9,6.38232436]
[1770596480157,8.11429444,2095.8,2094.4,2.7382551]
[1770596480362,8.11429444,2095.8,2094.3,4.22946948]
[1770596480363,8.10828976,2095.7,2094.3,6.4009973]
[1770596481257,8.10828976,2095.5,2094.2,0.00427824]
[1770596481663,8.10828976,2095.5,2094.2,6.3838248]
[1770596481865,8.10828976,2095.5,2094.4,6.37954656]
[1770596482557,8.10828976,2095.5,2094.3,24.46589]
[1770596482759,8.10828976,2095.5,2094.2,0.00427824]
[1770596483366,8.10828976,2095.5,2094.2,6.37046205]
[1770596490871,8.34708976,2095.2,2093.6,10.5021126]
[1770596491070,8.34712976,2094.9,2093.4,6.27692136]
[1770596491276,8.10828976,2094.6,2093.2,6.27692136]
[1770596491569,8.10828976,2094.4,2092.8,10.50552841]
[1770596491769,8.10828976,2094.4,2092.8,6.27605893]
[1770596491972,8.10828976,2094.3,2092.8,6.27605893]
[1770596492273,8.11368081,2094.3,2092.8,6.28040072]
[1770596493874,8.11368081,2094.3,2093.0,6.2445614]
[1770596494174,8.11368081,2094.3,2093.1,6.2445614]
[1770596494674,8.10828976,2094.5,2093.8,6.23853994]
[1770596495272,8.10828976,2095.1,2093.8,6.23853994]
[1770596495578,8.10828976,2095.1,2094.1,6.28245768]
[1770596495777,8.11367483,2095.1,2094.1,6.28245768]
[1770596497178,8.11367483,2095.1,2093.9,6.27682697]
[1770596497978,8.11367483,2095.1,2093.4,6.26784153]
[1770596498174,8.10828976,2095.0,2093.4,6.26784153]
[1770596498379,8.10828976,2095.0,2093.7,2.7382551]
[1770596498577,8.10828976,2095.0,2093.8,6.26192425]
[1770596501278,8.11367483,2095.1,2094.2,6.24042515]
[1770596502083,8.11367483,2095.1,2094.2,6.47933515]
[1770596502784,0.00538507,2095.1,2094.2,6.47933515]
[1770596503185,8.11367483,2095.1,2094.2,6.47933515]
[1770596504983,8.11367483,2095.1,2094.2,0.23891]
[1770596505180,8.11367483,2095.1,2093.6,0.23898]
[1770596505785,8.11367483,2095.1,2093.6,6.45614755]
[1770596506979,7.98836563,2094.9,2093.4,10.44097559]
[1770596507182,7.98836563,2094.9,2093.4,6.21150611]
[1770596507388,7.98836563,2094.8,2093.4,6.21150611]
[1770596507584,7.98836563,2094.6,2093.4,6.21150611]
[1770596507777,7.98836563,2094.8,2093.9,5.98776947]
[1770596507980,7.98836563,2094.8,2094.1,5.98776947]
[1770596508577,7.98836563,2094.8,2094.0,6.22117435]
[1770596508781,7.98836563,2094.8,2093.7,2.82508552]
[1770596509584,7.98836563,2094.8,2093.5,24.323]
[1770596509789,7.98836563,2094.7,2093.5,24.323]
[1770596510085,7.98836563,2094.6,2093.2,2.82508552]
[1770596510387,7.98836563,2094.5,2093.1,2.82508552]
[1770596510590,7.98836563,2094.5,2093.0,8.91166624]
[1770596511087,50.5972544,2094.4,2093.0,0.23904]
[1770596511283,7.98836563,2094.3,2093.0,0.23904]
[1770596511590,7.98836563,2094.3,2092.9,5.84211776]
[1770596512485,7.98836563,2094.2,2092.8,24.42434179]
[1770596512794,7.98836563,2094.1,2092.8,24.42434179]
[1770596513490,7.98836563,2094.0,2092.8,0.00434179]
[1770596513685,7.98836563,2093.9,2092.8,0.00434179]
[1770596513881,7.98836563,2093.7,2092.8,0.00434179]
[1770596514287,8.22733563,2093.7,2092.3,24.48]
[1770596514486,7.98836563,2093.6,2092.3,24.48]
[1770596514884,7.98836563,2093.6,2092.4,5.75006374]
[1770596515187,7.99397266,2093.6,2092.4,5.75493698]
[1770596515389,7.99397266,2093.6,2092.4,0.00487324]
[1770596515585,7.99397266,2093.6,2092.4,5.73523824]
[1770596518890,7.99397266,2093.6,2092.4,0.00487324]
[1770596520387,7.98836563,2093.4,2092.4,0.00487324]
[1770596520689,8.22737563,2093.4,2091.8,5.62924787]
[1770596521085,8.22745563,2092.7,2091.6,0.27787142]
[1770596521285,7.98836563,2092.6,2091.6,0.27787142]
[1770596521589,7.98836563,2092.4,2091.6,5.64555519]
[1770596521790,7.98836563,2092.4,2091.1,5.6404712]
[1770596521984,7.98836563,2092.4,2091.1,5.92005753]
[1770596522696,7.98836563,2092.4,2090.9,5.63541165]
[1770596522897,7.98836563,2092.4,2090.9,5.64028397]
[1770596524196,7.98836563,2092.4,2090.9,5.92186634]
[1770596524495,7.98836563,2092.4,2091.1,5.58009098]
[1770596525691,7.98836563,2092.6,2091.5,5.57912365]
[1770596525897,7.98836563,2092.6,2091.5,5.81834365]
[1770596526395,7.98836563,2092.8,2091.7,5.57358864]
[1770596527495,7.98836563,2093.4,2091.9,5.63629579]
[1770596527701,7.98836563,2093.4,2091.9,5.87546579]
[1770596527902,7.98836563,2093.2,2091.9,5.87546579]
[1770596529889,7.99397266,2093.6,2092.3,5.93225461]
[1770596530498,7.98836563,2093.5,2092.3,5.93225461]
[1770596531699,7.98836563,2093.5,2092.5,5.50575133]
[1770596531895,7.98836563,2093.5,2092.5,5.51014152]
[1770596532599,0.00560703,2093.6,2092.5,5.51014152]
[1770596532800,7.99397266,2093.6,2092.8,5.50096005]
[1770596533300,7.98836563,2093.8,2093.0,5.50096005]
[1770596534202,7.98836563,2094.1,2093.2,5.50635294]
[1770596534403,7.98836563,2094.1,2093.2,5.74538294]
[1770596535096,7.9331247,2094.4,2093.2,5.74538294]
[1770596535404,7.93708146,2094.4,2093.2,5.74538294]
[1770596535603,0.00395676,2094.4,2093.6,5.52510354]
[1770596536296,8.25102736,2094.4,2093.6,5.80089363]
[1770596536492,0.00395676,2094.4,2094.0,5.51645587]
[1770596536696,73.50788877,2095.7,2094.0,5.51645587]
[1770596536697,8.2470706,2095.6,2094.0,5.52255071]
[1770596537704,8.25255731,2095.6,2094.0,5.52255071]
[1770596540210,8.2470706,2095.4,2094.0,5.76148071]
[1770596541407,8.2470706,2095.4,2094.2,5.47027772]
[1770596541901,8.2470706,2095.4,2094.0,5.47637256]
[1770596542205,8.2470706,2095.4,2094.0,0.00609484]
[1770596542797,8.2470706,2095.4,2094.1,5.46572198]
[1770596543406,8.2470706,2095.4,2094.0,0.00609484]
[1770596543604,8.2470706,2095.2,2094.0,0.00609484]
[1770596544405,8.2470706,2095.2,2093.5,0.27460781]
[1770596544601,8.2470706,2095.2,2093.5,5.50748075]
[1770596545505,8.2470706,2095.0,2093.5,0.00345674]
[1770596545710,8.2470706,2094.7,2093.5,5.4583056]
[1770596549615,8.2470706,2094.7,2093.5,5.6972956]
[1770596550620,8.2470706,2094.7,2093.7,5.4265593]
[1770596551810,8.2470706,2094.7,2093.6,4.06998]
[1770596552117,8.2470706,2094.7,2093.6,9.21384016]
[1770596553617,8.2470706,2094.7,2093.5,0.00345674]
[1770596555018,8.2470706,2094.7,2093.6,5.37414683]
[1770596555625,8.2470706,2094.7,2093.8,5.37376179]
[1770596556119,8.2470706,2094.7,2093.6,6.24687892]
[1770596556120,8.2470706,2094.9,2094.1,5.37376179]
[1770596557028,8.2470706,2094.9,2094.0,0.23893]
[1770596557225,8.2470706,2094.9,2094.0,5.60843253]
[1770596560830,8.2470706,2094.9,2093.8,5.4355564]
[1770596561236,8.2470706,2094.9,2093.5,8.25941692]
[1770596561826,8.2470706,2094.9,2093.6,5.15984848]
[1770596562027,42.60888877,2094.9,2093.5,0.00345674]
[1770596562228,50.85595937,2094.8,2093.5,0.00345674]
[1770596562526,8.2470706,2094.7,2093.5,5.15921438]
[1770596564033,8.2470706,2094.7,2093.7,4.83365725]
[1770596564733,8.2470706,2094.7,2093.6,4.8296925]
[1770596565035,8.2470706,2094.7,2093.5,7.65938531]
[1770596565830,8.08093803,2094.5,2093.5,0.00345674]
[1770596567136,50.6898268,2094.5,2093.5,0.00345674]
[1770596567338,8.08093803,2094.4,2093.5,0.00345674]
[1770596567934,8.08093803,2094.4,2093.1,7.87556108]
[1770596568129,8.08093803,2094.4,2093.1,5.05047556]
[1770596568335,8.08093803,2094.2,2093.1,5.05047556]
[1770596568635,8.08093803,2094.2,2093.0,3.34873616]
[1770596569034,8.08093803,2094.2,2093.0,3.35209176]
[1770596569337,8.08093803,2094.2,2093.0,8.40547407]
[1770596569733,8.08093803,2094.2,2093.0,7.88182343]
[1770596570033,8.31985803,2094.2,2093.0,0.0033556]
[1770596570232,8.08093803,2094.1,2093.0,0.0033556]
[1770596570433,8.08634936,2094.1,2093.0,0.0033556]
[1770596570839,8.08093803,2094.0,2093.0,0.0033556]
[1770596571138,8.08093803,2094.0,2092.6,4.95300586]
[1770596572036,8.08093803,2094.0,2092.6,4.95635112]
[1770596572626,8.08093803,2093.9,2092.6,4.95635112]
[1770596572829,8.08093803,2093.8,2092.2,2.82508552]
[1770596573032,8.08093803,2093.5,2092.1,4.96830741]
[1770596573230,8.08093803,2093.3,2092.1,4.96830741]
[1770596573636,8.08093803,2093.3,2091.9,5.02421383]
[1770596573830,8.08093803,2093.1,2091.9,5.03017802]
[1770596575439,8.08093803,2093.1,2091.9,0.00596419]
[1770596578337,40.8,2093.2,2091.9,0.00596419]
[1770596578338,8.08093803,2092.9,2091.9,0.00596419]
[1770596579238,8.08093803,2092.7,2091.6,4.97857984]
[1770596579545,8.08093803,2092.6,2091.6,4.97857984]
[1770596579942,8.08093803,2092.6,2091.2,5.00541011]
[1770596580145,8.08093803,2092.5,2091.2,5.00541011]
[1770596580344,8.08495288,2092.5,2091.2,5.0091832]
[1770596580946,8.08495288,2092.5,2091.3,5.00493373]
[1770596581241,0.00401485,2092.5,2091.3,5.00493373]
[1770596581440,8.003,2093.3,2091.9,5.01301147]
[1770596581638,8.08093803,2093.4,2092.2,5.01301147]
[1770596582445,8.08441987,2093.4,2092.2,5.01301147]
[1770596583847,8.08093803,2093.3,2091.8,5.05277391]
[1770596584241,8.08093803,2093.3,2092.0,5.05225055]
[1770596586240,8.08093803,2093.3,2092.0,5.29141055]
[1770596588348,8.08093803,2093.3,2092.1,5.02425244]
[1770596590944,8.08093803,2093.3,2092.3,5.02378201]
[1770596597050,8.08093803,2093.3,2092.1,5.00445879]
[1770596597749,8.08093803,2093.3,2091.5,3.831]
[1770596597750,8.08669225,2092.9,2091.5,5.02188957]
[1770596598250,8.32575225,2092.9,2091.5,5.02188957]
[1770596599246,8.08669225,2092.7,2091.5,5.02188957]
[1770596599847,8.08669225,2092.7,2091.8,5.07476868]
[1770596601051,8.08669225,2092.7,2091.6,2.82508552]
[1770596601255,8.08669225,2092.7,2091.6,5.07439718]
[1770596603964,8.08669225,2092.7,2091.4,7.85308958]
[1770596604158,8.08669225,2092.5,2091.4,5.02800406]
[1770596604950,8.08669225,2092.5,2091.5,5.02765045]
[1770596605558,8.08669225,2092.5,2091.7,5.0450254]
[1770596610258,8.08669225,2093.0,2091.9,5.02521981]
[1770596611246,50.69558102,2093.0,2091.6,2.82508552]
[1770596611462,50.69558102,2093.0,2091.5,7.84960105]
[1770596611463,8.08669225,2092.8,2091.5,7.84960105]
[1770596611756,8.08669225,2092.8,2091.6,5.2652296]
[1770596612951,8.08669225,2092.6,2091.6,5.2652296]
[1770596614456,8.08669225,2092.6,2091.2,5.22210607]
[1770596614457,8.08669225,2092.4,2091.2,5.22210607]
[1770596615159,8.08669225,2092.4,2091.3,5.21833298]
[1770596615359,8.08669225,2092.4,2091.2,0.00377309]
[1770596616654,8.08669225,2092.4,2091.2,5.21372728]
[1770596616856,8.08669225,2092.2,2091.2,5.21372728]
[1770596617956,8.08669225,2092.2,2091.3,5.17350879]
[1770596618863,8.08669225,2092.5,2091.7,5.17320483]
[1770596619560,8.08669225,2092.9,2091.8,5.23455454]
[1770596620062,8.08669225,2092.8,2091.8,5.23455454]
[1770596621160,8.08669225,2092.7,2091.5,3.831]
[1770596621360,8.08669225,2092.5,2091.4,5.23425626]
[1770596622362,8.08669225,2092.5,2091.2,8.11657133]
[1770596623064,8.08669225,2092.5,2091.3,5.28893091]
[1770596624166,8.08669225,2092.4,2091.3,5.28893091]
[1770596624667,8.08669225,2092.4,2091.2,0.00377309]
[1770596624959,8.08669225,2092.4,2091.2,5.2598065]
[1770596625264,8.08669225,2092.4,2091.2,8.08367383]
[1770596625464,8.08669225,2092.4,2091.3,5.2536326]
[1770596626364,7.50173301,2092.3,2091.3,5.2536326]
[1770596628162,7.50173301,2092.3,2091.4,5.2730072]
[1770596630769,7.50173301,2092.7,2091.8,5.28229777]
[1770596633972,7.50173301,2092.7,2091.6,8.71534718]
[1770596634762,7.50173301,2092.7,2091.7,5.89121761]
[1770596635271,7.50173301,2092.7,2091.9,5.89121761]
[1770596636068,7.50173301,2092.7,2092.0,5.74465405]
[1770596640373,7.50173301,2092.5,2091.4,2.82386733]
[1770596640573,7.50173301,2092.5,2091.3,8.54998398]
[1770596640773,7.50173301,2092.5,2091.4,5.72613937]
[1770596641068,7.50173301,2092.3,2091.4,5.72613937]
[1770596641465,7.50173301,2092.3,2091.2,8.56750903]
[1770596641670,7.50173301,2092.3,2091.2,0.00377309]
[1770596641871,7.50173301,2092.2,2091.2,0.00377309]
[1770596642065,50.11062178,2092.3,2091.2,0.00377309]
[1770596642066,7.50173301,2092.0,2091.2,0.00377309]
[1770596642972,7.50173301,2092.0,2091.2,5.74340497]
[1770596643173,42.60888877,2092.3,2091.2,5.74340497]
[1770596643174,7.50173301,2092.3,2091.2,5.74340497]
[1770596643477,7.50173301,2092.3,2091.5,5.72493857]
[1770596643875,7.50173301,2092.5,2091.6,5.72493857]
[1770596644073,7.50173301,2092.5,2091.7,5.72493857]
[1770596644477,38.41373301,2092.7,2091.7,5.72493857]
[1770596644778,7.50173301,2092.6,2091.7,5.72493857]
[1770596646068,7.50173301,2092.6,2091.8,5.72191963]
[1770596648078,7.50173301,2092.6,2091.6,32.97265463]
[1770596648270,7.50173301,2092.6,2091.7,5.72154592]
[1770596650678,7.50173301,2092.6,2091.8,5.7256126]
[1770596653688,7.50173301,2092.6,2091.5,3.831]
[1770596653881,7.50173301,2092.5,2091.5,3.831]
[1770596654286,7.50173301,2092.5,2091.4,5.71573212]
[1770596655792,7.75357388,2092.7,2091.8,5.608753]
[1770596659793,7.75357388,2092.7,2091.6,2.82386733]
[1770596660091,7.68705438,2092.5,2091.4,2.82386733]
[1770596660394,7.68705438,2092.3,2091.3,5.69034247]
[1770596661193,7.68705438,2092.3,2091.2,2.82764042]
[1770596661796,7.68705438,2092.1,2091.2,0.00377309]
[1770596662992,7.68705438,2092.1,2091.2,5.70623818]
[1770596664793,7.68705438,2092.3,2091.3,5.68309126]
[1770596666601,7.68705438,2092.3,2091.4,5.66710334]
[1770596668094,7.68705438,2092.3,2091.5,5.65362327]
[1770596668701,7.68705438,2092.6,2091.5,5.65362327]
[1770596668900,7.68705438,2092.6,2091.8,5.65345288]
[1770596674404,42.60888877,2093.0,2092.1,6.08565196]
[1770596674405,7.68705438,2093.0,2092.1,6.08565196]
[1770596677612,7.68705438,2093.0,2092.2,5.98740638]
[1770596678310,7.68705438,2092.9,2091.8,2.82386733]
[1770596678500,7.68705438,2092.9,2091.7,5.98725118]
[1770596678700,7.68705438,2092.9,2091.8,5.98725118]
[1770596680515,7.68705438,2092.7,2091.8,5.98725118]
[1770596683215,7.77455755,2093.3,2091.8,5.98725118]
[1770596683216,7.68705438,2092.9,2092.0,6.08278728]
[1770596684516,7.68705438,2092.9,2091.7,12.74181545]
[1770596684721,7.68705438,2092.9,2091.7,9.91794812]
[1770596685120,42.84794877,2093.0,2091.6,2.82386733]
[1770596685121,7.75952204,2092.7,2091.6,2.82386733]
[1770596685616,7.75952204,2092.7,2091.5,8.93856993]
[1770596686313,7.75952204,2092.7,2091.5,8.93866303]
[1770596686617,7.75952204,2092.7,2091.6,6.14802975]
[1770596687615,35.84531086,2093.0,2091.6,6.14802975]
[1770596687816,8.22390206,2094.0,2092.7,0.00188295]
[1770596688419,8.22390206,2094.0,2093.0,0.00173583]
[1770596688616,8.22390206,2094.0,2093.1,0.00174488]
[1770596689121,8.22886291,2094.0,2093.1,0.00605957]
[1770596689917,8.22886291,2094.0,2093.2,0.79609679]
[1770596690518,0.23882,2095.0,2093.8,0.79147693]
[1770596690519,7.92508514,2095.0,2093.8,0.79147693]
[1770596690725,7.92508514,2095.0,2093.9,0.79147693]
[1770596691016,7.92508514,2095.0,2094.0,0.79147693]
[1770596691221,7.92508514,2095.0,2094.1,0.79147693]
[1770596691618,7.92933037,2095.0,2094.2,0.79043807]
[1770596691821,0.00424523,2095.0,2094.2,0.79043807]
[1770596692017,0.00424523,2095.0,2094.4,0.79043807]
[1770596692216,0.00424523,2095.0,2094.4,1.06370347]
[1770596692424,7.92748975,2095.0,2094.5,0.78608194]
[1770596693017,0.00424523,2095.0,2094.5,0.78608194]
[1770596694720,7.85555478,2095.0,2094.5,0.78608194]
[1770596694924,7.85555478,2095.0,2094.4,0.2732654]
[1770596695115,7.85555478,2095.0,2094.3,0.93798871]
[1770596696023,7.85555478,2095.0,2094.4,0.91016356]
[1770596697128,0.00424523,2095.0,2094.4,0.91016356]
[1770596698328,7.888509,2095.0,2094.4,0.91016356]
[1770596699030,7.888509,2095.0,2094.0,0.23893]
[1770596699227,7.888509,2095.0,2093.9,0.8870974]